[Event "Titled Tuesday Blitz March 07 Early 2023"]
[White "Ozer, Omer Faruk"]
[Black "Aarav Dengla"]
[WhiteFideId "6354564"]
[BlackFideId "45059756"]
[WhiteElo "2260"]
[BlackElo "2285"]
[Result "1-0"]
[Round "03"]
[TimeControl "180+2"]
[Date "2023.03.07"]
[WhiteClock "0:00:36"]
[BlackClock "0:00:01"]

1. d4 {[%clk 0:03:00]}  d5 {[%clk 0:02:56]} 2. Nf3 {[%clk 0:02:59]}  e6 {[%clk 0:02:52]} 3. g3 {[%clk 0:02:59]}  c5 {[%clk 0:02:51]} 4. Bg2 {[%clk 0:02:59]}  Nc6 {[%clk 0:02:50]} 5. O-O {[%clk 0:02:59]}  Nf6 {[%clk 0:02:46]} 6. b3 {[%clk 0:02:59]}  b6 {[%clk 0:02:37]} 7. c4 {[%clk 0:02:51]}  Bb7 {[%clk 0:02:13]} 8. cxd5 {[%clk 0:02:49]}  Nxd5 {[%clk 0:02:10]} 9. Bb2 {[%clk 0:02:36]}  Nf6 {[%clk 0:01:31]} 10. Nc3 {[%clk 0:02:14]}  Nxd4 {[%clk 0:00:54]} 11. Nxd4 {[%clk 0:02:13]}  Bxg2 {[%clk 0:00:54]} 12. Nxe6 {[%clk 0:02:13]}  Qxd1 {[%clk 0:00:54]} 13. Rfxd1 {[%clk 0:02:14]}  fxe6 {[%clk 0:00:55]} 14. Kxg2 {[%clk 0:02:14]}  Be7 {[%clk 0:00:55]} 15. Nb5 {[%clk 0:02:12]}  Kf7 {[%clk 0:00:55]} 16. Bxf6 {[%clk 0:02:03]}  gxf6 {[%clk 0:00:53]} 17. Rd7 {[%clk 0:02:03]}  a6 {[%clk 0:00:53]} 18. Nd6+ {[%clk 0:02:01]}  Kf8 {[%clk 0:00:48]} 19. Rd1 {[%clk 0:01:51]}  Rg8 {[%clk 0:00:47]} 20. Nc4 {[%clk 0:01:48]}  b5 {[%clk 0:00:47]} 21. Na5 {[%clk 0:01:44]}  Rg7 {[%clk 0:00:46]} 22. Nc6 {[%clk 0:01:31]}  Rc8 {[%clk 0:00:43]} 23. Na7 {[%clk 0:01:17]}  Ra8 {[%clk 0:00:34]} 24. Rc7 {[%clk 0:01:04]}  f5 {[%clk 0:00:26]} 25. Rdd7 {[%clk 0:01:01]}  Bf6 {[%clk 0:00:25]} 26. Rxg7 {[%clk 0:00:54]}  Bxg7 {[%clk 0:00:26]} 27. Nc8 {[%clk 0:00:52]}  Be5 {[%clk 0:00:06]} 28. Rxc5 {[%clk 0:00:52]}  Bd4 {[%clk 0:00:07]} 29. Rc6 {[%clk 0:00:52]}  Ke8 {[%clk 0:00:05]} 30. Rxe6+ {[%clk 0:00:50]}  Kd7 {[%clk 0:00:05]} 31. Rd6+ {[%clk 0:00:50]}  Kxc8 {[%clk 0:00:06]} 32. Rxd4 {[%clk 0:00:51]}  Kc7 {[%clk 0:00:07]} 33. Rh4 {[%clk 0:00:50]}  Rf8 {[%clk 0:00:08]} 34. Rxh7+ {[%clk 0:00:50]}  Kd6 {[%clk 0:00:09]} 35. Kf3 {[%clk 0:00:49]}  Kc5 {[%clk 0:00:10]} 36. Rh4 {[%clk 0:00:48]}  a5 {[%clk 0:00:10]} 37. Rf4 {[%clk 0:00:47]}  Kd5 {[%clk 0:00:10]} 38. h4 {[%clk 0:00:44]}  b4 {[%clk 0:00:08]} 39. h5 {[%clk 0:00:43]}  Ke5 {[%clk 0:00:08]} 40. h6 {[%clk 0:00:40]}  Rh8 {[%clk 0:00:07]} 41. Rh4 {[%clk 0:00:40]}  Rc8 {[%clk 0:00:05]} 42. h7 {[%clk 0:00:40]}  Rh8 {[%clk 0:00:06]} 43. e3 {[%clk 0:00:38]}  Kf6 {[%clk 0:00:04]} 44. Kf4 {[%clk 0:00:38]}  Kg6 {[%clk 0:00:04]} 45. f3 {[%clk 0:00:37]}  Kf6 {[%clk 0:00:03]} 46. Rh6+ {[%clk 0:00:36]}  Kg7 {[%clk 0:00:03]} 47. Kg5 {[%clk 0:00:36]}  a4 {[%clk 0:00:01]} 48. bxa4 {[%clk 0:00:36]} 1-0


[Site "https://www.chess.com"]

[Event "Titled Tuesday Blitz March 07 Early 2023"]
[White "Trent, Lawrence"]
[Black "Mazurkiewicz, Michal"]
[WhiteFideId "408638"]
[BlackFideId "1124943"]
[WhiteElo "2458"]
[BlackElo "2054"]
[Result "1/2-1/2"]
[Round "03"]
[TimeControl "180+2"]
[Date "2023.03.07"]
[WhiteClock "0:00:10"]
[BlackClock "0:00:08"]

1. g3 {[%clk 0:03:00]}  Nf6 {[%clk 0:02:59]} 2. Nf3 {[%clk 0:03:01]}  g6 {[%clk 0:03:00]} 3. Bg2 {[%clk 0:03:01]}  Bg7 {[%clk 0:03:01]} 4. O-O {[%clk 0:03:02]}  O-O {[%clk 0:03:01]} 5. d4 {[%clk 0:03:03]}  d6 {[%clk 0:03:02]} 6. c4 {[%clk 0:03:03]}  c5 {[%clk 0:03:03]} 7. Nc3 {[%clk 0:03:03]}  cxd4 {[%clk 0:03:03]} 8. Nxd4 {[%clk 0:03:03]}  Qa5 {[%clk 0:03:04]} 9. Nb3 {[%clk 0:03:02]}  Qh5 {[%clk 0:03:03]} 10. e4 {[%clk 0:03:02]}  Bg4 {[%clk 0:03:03]} 11. f3 {[%clk 0:03:02]}  Bh3 {[%clk 0:03:04]} 12. Qe2 {[%clk 0:02:58]}  Nc6 {[%clk 0:03:04]} 13. Be3 {[%clk 0:02:56]}  Rac8 {[%clk 0:02:57]} 14. Rac1 {[%clk 0:02:55]}  Ne5 {[%clk 0:02:56]} 15. Nd2 {[%clk 0:02:55]}  a6 {[%clk 0:02:27]} 16. a4 {[%clk 0:02:50]}  e6 {[%clk 0:01:51]} 17. g4 {[%clk 0:02:44]}  Qh4 {[%clk 0:01:50]} 18. g5 {[%clk 0:02:37]}  Nh5 {[%clk 0:01:31]} 19. f4 {[%clk 0:02:25]}  Ng4 {[%clk 0:01:21]} 20. Nf3 {[%clk 0:02:24]}  Ng3 {[%clk 0:00:38]} 21. Qe1 {[%clk 0:01:25]}  Bxg2 {[%clk 0:00:19]} 22. Kxg2 {[%clk 0:01:26]}  Nxe3+ {[%clk 0:00:15]} 23. Qxe3 {[%clk 0:01:22]}  Nxf1 {[%clk 0:00:16]} 24. Rxf1 {[%clk 0:01:20]}  Qg4+ {[%clk 0:00:16]} 25. Kh1 {[%clk 0:01:21]}  Rxc4 {[%clk 0:00:17]} 26. Ne2 {[%clk 0:01:21]}  Rfc8 {[%clk 0:00:16]} 27. Rg1 {[%clk 0:01:20]}  Qh3 {[%clk 0:00:15]} 28. Rg3 {[%clk 0:01:18]}  Qf1+ {[%clk 0:00:15]} 29. Rg1 {[%clk 0:01:19]}  Qh3 {[%clk 0:00:16]} 30. Rg3 {[%clk 0:01:19]}  Qh5 {[%clk 0:00:16]} 31. b3 {[%clk 0:01:17]}  Rc2 {[%clk 0:00:16]} 32. Neg1 {[%clk 0:01:08]}  R8c3 {[%clk 0:00:15]} 33. Qe1 {[%clk 0:00:58]}  Rc1 {[%clk 0:00:14]} 34. Qf2 {[%clk 0:00:57]}  R3c2 {[%clk 0:00:12]} 35. Qb6 {[%clk 0:00:52]}  h6 {[%clk 0:00:12]} 36. Qd8+ {[%clk 0:00:37]}  Kh7 {[%clk 0:00:12]} 37. gxh6 {[%clk 0:00:37]}  Bd4 {[%clk 0:00:09]} 38. Ng5+ {[%clk 0:00:30]}  Kxh6 {[%clk 0:00:05]} 39. Qf8+ {[%clk 0:00:16]}  Bg7 {[%clk 0:00:06]} 40. Nxf7+ {[%clk 0:00:16]}  Kh7 {[%clk 0:00:06]} 41. Ng5+ {[%clk 0:00:16]}  Kh6 {[%clk 0:00:07]} 42. Nf7+ {[%clk 0:00:10]}  Kh7 {[%clk 0:00:08]} 43. Ng5+ {[%clk 0:00:10]}  Kh6 {[%clk 0:00:08]} 44. Nf7+ {[%clk 0:00:10]} 1/2-1/2


[Site "https://www.chess.com"]

[Event "Titled Tuesday Blitz March 07 Early 2023"]
[White "Papasimakopoulos, Alexandros"]
[Black "Srebrnic, Marko"]
[WhiteFideId "4244125"]
[BlackFideId "14603616"]
[WhiteElo "2359"]
[BlackElo "2341"]
[Result "1-0"]
[Round "03"]
[TimeControl "180+2"]
[Date "2023.03.07"]
[WhiteClock "0:01:05"]
[BlackClock "0:00:18"]

1. d4 {[%clk 0:02:17]}  Nf6 {[%clk 0:02:57]} 2. c4 {[%clk 0:02:17]}  d6 {[%clk 0:02:56]} 3. Nc3 {[%clk 0:02:18]}  Bf5 {[%clk 0:02:50]} 4. h3 {[%clk 0:02:17]}  h5 {[%clk 0:02:48]} 5. Nf3 {[%clk 0:02:15]}  h4 {[%clk 0:02:45]} 6. Bg5 {[%clk 0:02:15]}  Ne4 {[%clk 0:02:46]} 7. Bxh4 {[%clk 0:02:11]}  Nxc3 {[%clk 0:02:44]} 8. bxc3 {[%clk 0:02:12]}  c5 {[%clk 0:02:42]} 9. e3 {[%clk 0:02:07]}  Qa5 {[%clk 0:02:42]} 10. Qd2 {[%clk 0:02:06]}  Nc6 {[%clk 0:02:31]} 11. Bd3 {[%clk 0:02:02]}  Bxd3 {[%clk 0:02:25]} 12. Qxd3 {[%clk 0:02:03]}  cxd4 {[%clk 0:02:26]} 13. exd4 {[%clk 0:02:03]}  e5 {[%clk 0:02:09]} 14. O-O {[%clk 0:02:00]}  f6 {[%clk 0:01:32]} 15. Qg6+ {[%clk 0:01:41]}  Kd7 {[%clk 0:01:29]} 16. c5 {[%clk 0:01:36]}  Ne7 {[%clk 0:01:17]} 17. Qf7 {[%clk 0:01:33]}  e4 {[%clk 0:01:08]} 18. cxd6 {[%clk 0:01:31]}  exf3 {[%clk 0:01:07]} 19. dxe7 {[%clk 0:01:27]}  Bxe7 {[%clk 0:01:08]} 20. Rfe1 {[%clk 0:01:24]}  Rae8 {[%clk 0:01:00]} 21. Qe6+ {[%clk 0:01:19]}  Kd8 {[%clk 0:00:56]} 22. Rab1 {[%clk 0:01:11]}  b6 {[%clk 0:00:27]} 23. Bg3 {[%clk 0:01:10]}  Rh5 {[%clk 0:00:18]} 24. Qc6 {[%clk 0:01:05]} 1-0


[Site "https://www.chess.com"]

[Event "Titled Tuesday Blitz March 07 Early 2023"]
[White "Tan, Jun Ying"]
[Black "Stepanencu, Nicodim-Cosmin"]
[WhiteFideId "5710413"]
[BlackFideId "1256220"]
[WhiteElo "2089"]
[BlackElo "2185"]
[Result "0-1"]
[Round "03"]
[TimeControl "180+2"]
[Date "2023.03.07"]
[WhiteClock "0:00:02"]
[BlackClock "0:00:18"]

1. d4 {[%clk 0:03:00]}  Nf6 {[%clk 0:02:57]} 2. c4 {[%clk 0:03:01]}  g6 {[%clk 0:02:58]} 3. Nc3 {[%clk 0:03:02]}  Bg7 {[%clk 0:02:58]} 4. e4 {[%clk 0:03:02]}  O-O {[%clk 0:02:59]} 5. Be2 {[%clk 0:03:02]}  d6 {[%clk 0:02:58]} 6. Nf3 {[%clk 0:03:02]}  e5 {[%clk 0:02:56]} 7. O-O {[%clk 0:03:03]}  Nc6 {[%clk 0:02:56]} 8. d5 {[%clk 0:03:04]}  Ne7 {[%clk 0:02:56]} 9. b4 {[%clk 0:03:04]}  a5 {[%clk 0:02:55]} 10. Ba3 {[%clk 0:03:04]}  axb4 {[%clk 0:02:55]} 11. Bxb4 {[%clk 0:03:05]}  b6 {[%clk 0:02:56]} 12. a4 {[%clk 0:03:05]}  Re8 {[%clk 0:02:50]} 13. Ba3 {[%clk 0:02:24]}  Nh5 {[%clk 0:02:37]} 14. Re1 {[%clk 0:02:15]}  Nf4 {[%clk 0:02:36]} 15. Bf1 {[%clk 0:02:13]}  f5 {[%clk 0:02:37]} 16. g3 {[%clk 0:02:05]}  Nh5 {[%clk 0:02:36]} 17. exf5 {[%clk 0:01:51]}  Nxf5 {[%clk 0:02:06]} 18. Ne4 {[%clk 0:01:44]}  Nf6 {[%clk 0:02:00]} 19. Nfg5 {[%clk 0:01:42]}  Nd4 {[%clk 0:01:55]} 20. Bg2 {[%clk 0:01:34]}  Nxe4 {[%clk 0:01:47]} 21. Nxe4 {[%clk 0:01:34]}  Bd7 {[%clk 0:01:47]} 22. Bc1 {[%clk 0:01:27]}  Rf8 {[%clk 0:01:42]} 23. Bg5 {[%clk 0:01:23]}  Qe8 {[%clk 0:01:40]} 24. a5 {[%clk 0:01:14]}  bxa5 {[%clk 0:01:23]} 25. c5 {[%clk 0:01:14]}  Qf7 {[%clk 0:01:15]} 26. Ra2 {[%clk 0:01:06]}  Ra6 {[%clk 0:01:05]} 27. c6 {[%clk 0:00:59]}  Bxc6 {[%clk 0:00:59]} 28. dxc6 {[%clk 0:00:42]}  Qxa2 {[%clk 0:00:59]} 29. Qd3 {[%clk 0:00:31]}  Rxc6 {[%clk 0:00:53]} 30. Kh1 {[%clk 0:00:16]}  Qc2 {[%clk 0:00:46]} 31. Qe3 {[%clk 0:00:15]}  Rb6 {[%clk 0:00:36]} 32. Bh6 {[%clk 0:00:14]}  Nf5 {[%clk 0:00:29]} 33. Qd2 {[%clk 0:00:07]}  Qxd2 {[%clk 0:00:26]} 34. Bxd2 {[%clk 0:00:08]}  Nd4 {[%clk 0:00:25]} 35. Bxa5 {[%clk 0:00:07]}  Rc6 {[%clk 0:00:23]} 36. h4 {[%clk 0:00:05]}  Rc2 {[%clk 0:00:19]} 37. Kg1 {[%clk 0:00:04]}  d5 {[%clk 0:00:18]} 38. Nd2 {[%clk 0:00:02]}  c6 {[%clk 0:00:19]} 39. Bb4 {[%clk 0:00:02]}  Rb8 {[%clk 0:00:17]} 40. Bd6 {[%clk 0:00:02]}  Rd8 {[%clk 0:00:17]} 41. Bb4 {[%clk 0:00:02]}  e4 {[%clk 0:00:16]} 42. Nf1 {[%clk 0:00:01]}  Ne2+ {[%clk 0:00:11]} 43. Kh2 {[%clk 0:00:01]}  Bc3 {[%clk 0:00:12]} 44. Bxc3 {[%clk 0:00:01]}  Nxc3 {[%clk 0:00:13]} 45. Ne3 {[%clk 0:00:02]}  Rxf2 {[%clk 0:00:13]} 46. Kg1 {[%clk 0:00:02]}  Re2 {[%clk 0:00:13]} 47. Rxe2 {[%clk 0:00:02]}  Nxe2+ {[%clk 0:00:14]} 48. Kf2 {[%clk 0:00:02]}  Nd4 {[%clk 0:00:15]} 49. Ng4 {[%clk 0:00:03]}  Nf5 {[%clk 0:00:14]} 50. Nf6+ {[%clk 0:00:03]}  Kg7 {[%clk 0:00:15]} 51. Ng4 {[%clk 0:00:03]}  e3+ {[%clk 0:00:15]} 52. Nxe3 {[%clk 0:00:03]}  Nxe3 {[%clk 0:00:16]} 53. Kxe3 {[%clk 0:00:03]}  Re8+ {[%clk 0:00:16]} 54. Kd4 {[%clk 0:00:04]}  Rf8 {[%clk 0:00:17]} 55. Ke3 {[%clk 0:00:04]}  Rf2 {[%clk 0:00:18]} 56. Kxf2 {[%clk 0:00:03]}  Kf6 {[%clk 0:00:19]} 57. Ke3 {[%clk 0:00:04]}  Ke5 {[%clk 0:00:19]} 58. Bf3 {[%clk 0:00:04]}  c5 {[%clk 0:00:20]} 59. Kd3 {[%clk 0:00:04]}  h6 {[%clk 0:00:18]} 60. Ke3 {[%clk 0:00:04]}  c4 {[%clk 0:00:18]} 61. Be2 {[%clk 0:00:04]}  d4+ {[%clk 0:00:18]} 62. Kf3 {[%clk 0:00:04]}  d3 {[%clk 0:00:19]} 63. Bf1 {[%clk 0:00:04]}  Kd4 {[%clk 0:00:20]} 64. g4 {[%clk 0:00:03]}  c3 {[%clk 0:00:19]} 65. Kf2 {[%clk 0:00:01]}  c2 {[%clk 0:00:18]} 66. Bxd3 {[%clk 0:00:02]}  Kxd3 {[%clk 0:00:18]} 0-1


[Site "https://www.chess.com"]

[Event "Titled Tuesday Blitz March 07 Early 2023"]
[White "Postnikov, Artem"]
[Black "Aggelis, Nikolaos"]
[WhiteFideId "34153575"]
[BlackFideId "4213220"]
[WhiteElo "2243"]
[BlackElo "2189"]
[Result "1-0"]
[Round "03"]
[TimeControl "180+2"]
[Date "2023.03.07"]
[WhiteClock "0:00:12"]
[BlackClock "0:01:01"]

1. d4 {[%clk 0:02:58]}  Nf6 {[%clk 0:02:53]} 2. c4 {[%clk 0:02:57]}  e5 {[%clk 0:02:53]} 3. dxe5 {[%clk 0:02:55]}  Ng4 {[%clk 0:02:52]} 4. Bf4 {[%clk 0:02:55]}  Nc6 {[%clk 0:02:50]} 5. Nf3 {[%clk 0:02:55]}  Bb4+ {[%clk 0:02:49]} 6. Nbd2 {[%clk 0:02:54]}  Qe7 {[%clk 0:02:48]} 7. a3 {[%clk 0:02:54]}  Bxd2+ {[%clk 0:02:45]} 8. Qxd2 {[%clk 0:02:53]}  Ngxe5 {[%clk 0:02:46]} 9. Nxe5 {[%clk 0:02:52]}  Nxe5 {[%clk 0:02:46]} 10. c5 {[%clk 0:02:49]}  O-O {[%clk 0:02:38]} 11. e3 {[%clk 0:02:46]}  Ng6 {[%clk 0:02:31]} 12. Bg3 {[%clk 0:02:42]}  f5 {[%clk 0:02:22]} 13. Bxc7 {[%clk 0:02:35]}  Qf6 {[%clk 0:02:12]} 14. Bd6 {[%clk 0:02:29]}  Re8 {[%clk 0:02:09]} 15. Bc4+ {[%clk 0:02:29]}  Kh8 {[%clk 0:02:09]} 16. O-O {[%clk 0:02:24]}  b6 {[%clk 0:02:07]} 17. Bd5 {[%clk 0:02:20]}  Ba6 {[%clk 0:02:07]} 18. Bxa8 {[%clk 0:02:03]}  Bxf1 {[%clk 0:02:06]} 19. Bf3 {[%clk 0:01:34]}  Ba6 {[%clk 0:01:58]} 20. cxb6 {[%clk 0:01:32]}  axb6 {[%clk 0:01:57]} 21. Bg3 {[%clk 0:01:32]}  Bb5 {[%clk 0:01:44]} 22. Qb4 {[%clk 0:01:18]}  Bc6 {[%clk 0:01:34]} 23. Qxb6 {[%clk 0:01:05]}  f4 {[%clk 0:01:31]} 24. exf4 {[%clk 0:00:54]}  Bxf3 {[%clk 0:01:24]} 25. Qxf6 {[%clk 0:00:53]}  gxf6 {[%clk 0:01:25]} 26. gxf3 {[%clk 0:00:54]}  f5 {[%clk 0:01:25]} 27. Rd1 {[%clk 0:00:41]}  Re7 {[%clk 0:01:15]} 28. Rd5 {[%clk 0:00:37]}  Rf7 {[%clk 0:01:14]} 29. a4 {[%clk 0:00:36]}  h5 {[%clk 0:01:15]} 30. h4 {[%clk 0:00:36]}  Kg7 {[%clk 0:01:12]} 31. a5 {[%clk 0:00:35]}  Kf6 {[%clk 0:01:13]} 32. b4 {[%clk 0:00:34]}  Ke6 {[%clk 0:01:10]} 33. Rb5 {[%clk 0:00:30]}  Ne7 {[%clk 0:01:08]} 34. Rb6+ {[%clk 0:00:24]}  d6 {[%clk 0:01:05]} 35. a6 {[%clk 0:00:17]}  Nc8 {[%clk 0:01:00]} 36. Rb7 {[%clk 0:00:17]}  Na7 {[%clk 0:00:57]} 37. b5 {[%clk 0:00:15]}  d5 {[%clk 0:00:55]} 38. Rxf7 {[%clk 0:00:10]}  Kxf7 {[%clk 0:00:56]} 39. b6 {[%clk 0:00:11]}  d4 {[%clk 0:00:56]} 40. bxa7 {[%clk 0:00:11]}  d3 {[%clk 0:00:56]} 41. a8=Q {[%clk 0:00:12]}  d2 {[%clk 0:00:57]} 42. Qd5+ {[%clk 0:00:12]}  Kg6 {[%clk 0:00:57]} 43. Qxd2 {[%clk 0:00:12]}  Kh6 {[%clk 0:00:58]} 44. Qd6+ {[%clk 0:00:12]}  Kh7 {[%clk 0:00:58]} 45. Qf6 {[%clk 0:00:12]}  Kg8 {[%clk 0:00:58]} 46. a7 {[%clk 0:00:12]}  Kh7 {[%clk 0:00:59]} 47. Kg2 {[%clk 0:00:12]}  Kg8 {[%clk 0:01:00]} 48. a8=Q+ {[%clk 0:00:12]}  Kh7 {[%clk 0:01:01]} 49. Qah8# {[%clk 0:00:12]} 1-0


[Site "https://www.chess.com"]

[Event "Titled Tuesday Blitz March 07 Early 2023"]
[White "Mamedov, Edgar"]
[Black "Goncalves, Davi Sulzbacher"]
[WhiteFideId "13739980"]
[BlackFideId "2154510"]
[WhiteElo "2330"]
[BlackElo "2182"]
[Result "1-0"]
[Round "03"]
[TimeControl "180+2"]
[Date "2023.03.07"]
[WhiteClock "0:00:05"]
[BlackClock "0:00:14"]

1. c4 {[%clk 0:02:59]}  e6 {[%clk 0:02:59]} 2. Nf3 {[%clk 0:02:58]}  Nf6 {[%clk 0:02:59]} 3. Nc3 {[%clk 0:02:57]}  d5 {[%clk 0:02:58]} 4. d4 {[%clk 0:02:57]}  Be7 {[%clk 0:02:57]} 5. g3 {[%clk 0:02:53]}  dxc4 {[%clk 0:02:54]} 6. Bg2 {[%clk 0:02:52]}  c5 {[%clk 0:02:51]} 7. O-O {[%clk 0:02:49]}  Nc6 {[%clk 0:02:40]} 8. dxc5 {[%clk 0:02:47]}  O-O {[%clk 0:02:38]} 9. Qa4 {[%clk 0:02:40]}  Qa5 {[%clk 0:02:31]} 10. Qxc4 {[%clk 0:02:37]}  Qxc5 {[%clk 0:02:30]} 11. Qxc5 {[%clk 0:02:36]}  Bxc5 {[%clk 0:02:30]} 12. Bg5 {[%clk 0:02:34]}  Be7 {[%clk 0:01:59]} 13. Rfd1 {[%clk 0:02:28]}  h6 {[%clk 0:01:59]} 14. Bf4 {[%clk 0:02:26]}  Rd8 {[%clk 0:01:58]} 15. Rxd8+ {[%clk 0:02:23]}  Bxd8 {[%clk 0:01:58]} 16. Ne5 {[%clk 0:02:22]}  Nxe5 {[%clk 0:01:37]} 17. Bxe5 {[%clk 0:02:21]}  Nd7 {[%clk 0:01:37]} 18. Rd1 {[%clk 0:02:14]}  Ba5 {[%clk 0:01:27]} 19. Bd6 {[%clk 0:02:00]}  Bxc3 {[%clk 0:00:59]} 20. bxc3 {[%clk 0:02:00]}  a5 {[%clk 0:01:00]} 21. c4 {[%clk 0:01:31]}  a4 {[%clk 0:00:40]} 22. Rb1 {[%clk 0:01:21]}  Ra6 {[%clk 0:00:36]} 23. c5 {[%clk 0:01:19]}  Ra5 {[%clk 0:00:34]} 24. Rc1 {[%clk 0:00:52]}  Nf6 {[%clk 0:00:34]} 25. Bc7 {[%clk 0:00:49]}  Rb5 {[%clk 0:00:34]} 26. Rd1 {[%clk 0:00:45]}  Nd5 {[%clk 0:00:31]} 27. Bxd5 {[%clk 0:00:29]}  exd5 {[%clk 0:00:32]} 28. Rxd5 {[%clk 0:00:29]}  Be6 {[%clk 0:00:32]} 29. Rd8+ {[%clk 0:00:22]}  Kh7 {[%clk 0:00:32]} 30. a3 {[%clk 0:00:17]}  Rxc5 {[%clk 0:00:31]} 31. Bd6 {[%clk 0:00:17]}  Rc1+ {[%clk 0:00:31]} 32. Kg2 {[%clk 0:00:17]}  Rd1 {[%clk 0:00:29]} 33. e4 {[%clk 0:00:15]}  b5 {[%clk 0:00:25]} 34. Be7 {[%clk 0:00:13]}  Re1 {[%clk 0:00:16]} 35. Rd4 {[%clk 0:00:10]}  Bc4 {[%clk 0:00:16]} 36. Bb4 {[%clk 0:00:06]}  Kg6 {[%clk 0:00:14]} 37. Bxe1 {[%clk 0:00:05]} 1-0


[Site "https://www.chess.com"]

[Event "Titled Tuesday Blitz March 07 Early 2023"]
[White "Mikhalsky, Vladimir"]
[Black "Jakubowski, Krzysztof"]
[WhiteFideId "14144352"]
[BlackFideId "1112848"]
[WhiteElo "2272"]
[BlackElo "2359"]
[Result "1-0"]
[Round "03"]
[TimeControl "180+2"]
[Date "2023.03.07"]
[WhiteClock "0:00:36"]
[BlackClock "0:00:03"]

1. e4 {[%clk 0:02:31]}  c5 {[%clk 0:02:58]} 2. Nf3 {[%clk 0:02:31]}  e6 {[%clk 0:02:58]} 3. b3 {[%clk 0:02:29]}  b6 {[%clk 0:02:57]} 4. Bb2 {[%clk 0:02:29]}  Bb7 {[%clk 0:02:56]} 5. Nc3 {[%clk 0:02:29]}  Nc6 {[%clk 0:02:54]} 6. d4 {[%clk 0:02:27]}  cxd4 {[%clk 0:02:51]} 7. Nxd4 {[%clk 0:02:26]}  Rc8 {[%clk 0:02:47]} 8. Ndb5 {[%clk 0:02:21]}  d6 {[%clk 0:02:37]} 9. Ba3 {[%clk 0:02:20]}  a6 {[%clk 0:02:07]} 10. Nxd6+ {[%clk 0:02:18]}  Bxd6 {[%clk 0:02:07]} 11. Qxd6 {[%clk 0:02:15]}  Qxd6 {[%clk 0:01:43]} 12. Bxd6 {[%clk 0:02:14]}  Nd4 {[%clk 0:01:42]} 13. O-O-O {[%clk 0:02:10]}  Nxb3+ {[%clk 0:01:38]} 14. axb3 {[%clk 0:01:58]}  Rxc3 {[%clk 0:01:37]} 15. Be5 {[%clk 0:01:57]}  Rc8 {[%clk 0:00:50]} 16. Bxg7 {[%clk 0:01:55]}  Bxe4 {[%clk 0:00:50]} 17. Bd3 {[%clk 0:01:48]}  Bxg2 {[%clk 0:00:50]} 18. Rhg1 {[%clk 0:01:43]}  Bf3 {[%clk 0:00:49]} 19. Rde1 {[%clk 0:01:43]}  Ne7 {[%clk 0:00:46]} 20. Bxh8 {[%clk 0:01:42]}  Kd7 {[%clk 0:00:45]} 21. Be4 {[%clk 0:01:36]}  Bxe4 {[%clk 0:00:43]} 22. Rxe4 {[%clk 0:01:35]}  Rxh8 {[%clk 0:00:43]} 23. Rg7 {[%clk 0:01:30]}  Ke8 {[%clk 0:00:37]} 24. Rh4 {[%clk 0:01:20]}  h6 {[%clk 0:00:32]} 25. Ra4 {[%clk 0:01:15]}  a5 {[%clk 0:00:27]} 26. b4 {[%clk 0:01:15]}  Nc6 {[%clk 0:00:13]} 27. bxa5 {[%clk 0:01:12]}  bxa5 {[%clk 0:00:11]} 28. Rc4 {[%clk 0:01:11]}  Ne7 {[%clk 0:00:11]} 29. Rc5 {[%clk 0:01:07]}  Nf5 {[%clk 0:00:11]} 30. Rg4 {[%clk 0:01:05]}  Ke7 {[%clk 0:00:11]} 31. Rxa5 {[%clk 0:01:04]}  Kf6 {[%clk 0:00:10]} 32. Ra7 {[%clk 0:00:58]}  Rc8 {[%clk 0:00:10]} 33. Rb4 {[%clk 0:00:54]}  h5 {[%clk 0:00:09]} 34. Rbb7 {[%clk 0:00:51]}  Nd6 {[%clk 0:00:09]} 35. Rd7 {[%clk 0:00:51]}  Rc6 {[%clk 0:00:06]} 36. Rac7 {[%clk 0:00:50]}  Rb6 {[%clk 0:00:05]} 37. c4 {[%clk 0:00:48]}  Ra6 {[%clk 0:00:04]} 38. c5 {[%clk 0:00:47]}  Nb5 {[%clk 0:00:04]} 39. Rxf7+ {[%clk 0:00:46]}  Ke5 {[%clk 0:00:05]} 40. Rb7 {[%clk 0:00:43]}  Nd4 {[%clk 0:00:05]} 41. Rh7 {[%clk 0:00:39]}  Ra2 {[%clk 0:00:04]} 42. Rxh5+ {[%clk 0:00:38]}  Ke4 {[%clk 0:00:04]} 43. Rb4 {[%clk 0:00:37]}  Kd3 {[%clk 0:00:03]} 44. Rh3+ {[%clk 0:00:36]} 1-0


[Site "https://www.chess.com"]

[Event "Titled Tuesday Blitz March 07 Early 2023"]
[White "Fikiet, Alex"]
[Black "Vargas Rodriguez, Wilver"]
[WhiteFideId "2052717"]
[BlackFideId "3509672"]
[WhiteElo "2426"]
[BlackElo "2238"]
[Result "1-0"]
[Round "03"]
[TimeControl "180+2"]
[Date "2023.03.07"]
[WhiteClock "0:00:57"]
[BlackClock "0:00:09"]

1. e4 {[%clk 0:02:59]}  c5 {[%clk 0:02:59]} 2. Nf3 {[%clk 0:02:58]}  d6 {[%clk 0:02:59]} 3. Bb5+ {[%clk 0:02:58]}  Bd7 {[%clk 0:02:58]} 4. Bxd7+ {[%clk 0:02:57]}  Qxd7 {[%clk 0:02:58]} 5. O-O {[%clk 0:02:57]}  Nc6 {[%clk 0:02:53]} 6. Qe2 {[%clk 0:02:55]}  g6 {[%clk 0:02:46]} 7. Rd1 {[%clk 0:02:42]}  Bg7 {[%clk 0:02:45]} 8. c3 {[%clk 0:02:39]}  f5 {[%clk 0:02:44]} 9. exf5 {[%clk 0:02:33]}  gxf5 {[%clk 0:02:42]} 10. d4 {[%clk 0:02:32]}  cxd4 {[%clk 0:02:39]} 11. cxd4 {[%clk 0:02:33]}  O-O-O {[%clk 0:02:37]} 12. Nc3 {[%clk 0:02:30]}  Nf6 {[%clk 0:02:29]} 13. d5 {[%clk 0:02:26]}  Ne5 {[%clk 0:02:27]} 14. Nxe5 {[%clk 0:02:11]}  dxe5 {[%clk 0:02:27]} 15. Qxe5 {[%clk 0:02:11]}  Rhg8 {[%clk 0:02:21]} 16. Bf4 {[%clk 0:02:07]}  Qd6 {[%clk 0:01:46]} 17. Qxf5+ {[%clk 0:02:05]}  Qd7 {[%clk 0:01:45]} 18. Qd3 {[%clk 0:02:01]}  b6 {[%clk 0:01:26]} 19. a4 {[%clk 0:01:55]}  Nh5 {[%clk 0:01:03]} 20. Be3 {[%clk 0:01:51]}  Be5 {[%clk 0:00:55]} 21. Qe4 {[%clk 0:01:28]}  Bd6 {[%clk 0:00:41]} 22. a5 {[%clk 0:01:19]}  Rg4 {[%clk 0:00:39]} 23. Qe6 {[%clk 0:01:07]}  Qxe6 {[%clk 0:00:14]} 24. dxe6 {[%clk 0:01:08]}  Kb7 {[%clk 0:00:09]} 25. Nb5 {[%clk 0:00:57]} 1-0


[Site "https://www.chess.com"]